[Event "Late-Titled-Tuesday-Blitz-March-19-2024"]
[Site "Chess.com"]
[Date "2024.03.19"]
[Round "3"]
[White "Young_Catalan_Player09"]
[Black "simaopdias"]
[Result "1-0"]
[WhiteElo "2593"]
[BlackElo "2283"]
[TimeControl "180+1"]
[EndTime "14:27:05 PDT"]
[Termination "Young_Catalan_Player09 won by resignation"]

1. e4 {[%clk 0:03:00.9]} 1... c5 {[%clk 0:02:59.7]} 2. d3 {[%clk 0:03:00]} 2...
g6 {[%clk 0:03:00.1]} 3. g3 {[%clk 0:02:58.7]} 3... Bg7 {[%clk 0:03:00.7]} 4.
Bg2 {[%clk 0:02:58.2]} 4... Nc6 {[%clk 0:03:01.6]} 5. f4 {[%clk 0:02:58.6]} 5...
Nf6 {[%clk 0:03:02.5]} 6. Nf3 {[%clk 0:02:58.7]} 6... d5 {[%clk 0:03:02.7]} 7.
e5 {[%clk 0:02:55.6]} 7... Ng4 {[%clk 0:03:02.9]} 8. h3 {[%clk 0:02:52.1]} 8...
Nh6 {[%clk 0:03:02.8]} 9. O-O {[%clk 0:02:48.6]} 9... O-O {[%clk 0:03:02.8]} 10.
c3 {[%clk 0:02:43.5]} 10... f6 {[%clk 0:03:02.6]} 11. d4 {[%clk 0:02:34.1]}
11... b6 {[%clk 0:02:59.3]} 12. Be3 {[%clk 0:02:30.1]} 12... Nf5 {[%clk
0:02:54.9]} 13. Bf2 {[%clk 0:02:29.8]} 13... cxd4 {[%clk 0:02:51.2]} 14. cxd4
{[%clk 0:02:29.7]} 14... Ba6 {[%clk 0:02:50.4]} 15. Re1 {[%clk 0:02:29.3]} 15...
Rc8 {[%clk 0:02:49.9]} 16. Nc3 {[%clk 0:02:25.6]} 16... fxe5 {[%clk 0:02:45.8]}
17. fxe5 {[%clk 0:02:17.8]} 17... e6 {[%clk 0:02:45.2]} 18. Bf1 {[%clk
0:02:13.4]} 18... Bxf1 {[%clk 0:02:42]} 19. Rxf1 {[%clk 0:02:14.3]} 19... Bh6
{[%clk 0:02:42.5]} 20. Qe2 {[%clk 0:02:08.6]} 20... Na5 {[%clk 0:02:35.2]} 21.
g4 {[%clk 0:02:06.2]} 21... Ne7 {[%clk 0:02:33.9]} 22. Bh4 {[%clk 0:02:06.2]}
22... Qd7 {[%clk 0:02:33.5]} 23. Bf6 {[%clk 0:02:03]} 23... Nc4 {[%clk
0:02:26.1]} 24. Ng5 {[%clk 0:01:54.4]} 24... Nc6 {[%clk 0:02:15.4]} 25. Rad1
{[%clk 0:01:51.4]} 25... a6 {[%clk 0:01:41.5]} 26. h4 {[%clk 0:01:49.3]} 26...
b5 {[%clk 0:01:40.5]} 27. Kg2 {[%clk 0:01:33.2]} 27... Rce8 {[%clk 0:01:35.9]}
28. Rh1 {[%clk 0:01:30.4]} 28... Qa7 {[%clk 0:01:30.5]} 29. h5 {[%clk 0:01:13]}
29... Nxd4 {[%clk 0:01:24.9]} 30. hxg6 {[%clk 0:01:08.9]} 30... Rxf6 {[%clk
0:01:11.7]} 31. gxh7+ {[%clk 0:01:07.3]} 31... Kh8 {[%clk 0:01:09.6]} 32. Rxd4
{[%clk 0:01:07.5]} 32... Qxd4 {[%clk 0:01:03.6]} 33. exf6 {[%clk 0:01:00.6]}
33... Bxg5 {[%clk 0:00:56.6]} 34. f7 {[%clk 0:01:00.5]} 34... Rf8 {[%clk
0:00:53.1]} 35. Qxe6 {[%clk 0:00:58.1]} 35... Qf2+ {[%clk 0:00:43.9]} 36. Kxf2
{[%clk 0:00:56.8]} 1-0

[Event "Late-Titled-Tuesday-Blitz-March-19-2024"]
[Site "Chess.com"]
[Date "2024.03.19"]
[Round "3"]
[White "Aslanov_Umid"]
[Black "Morscas"]
[Result "1-0"]
[WhiteElo "2608"]
[BlackElo "2326"]
[TimeControl "180+1"]
[EndTime "14:27:15 PDT"]
[Termination "Aslanov_Umid won by resignation"]

1. e4 {[%clk 0:03:00.9]} 1... c5 {[%clk 0:02:46.4]} 2. Nf3 {[%clk 0:03:00.5]}
2... d6 {[%clk 0:02:46.4]} 3. d4 {[%clk 0:03:00.9]} 3... cxd4 {[%clk 0:02:47.3]}
4. Qxd4 {[%clk 0:03:01.4]} 4... Nf6 {[%clk 0:02:46.9]} 5. Be2 {[%clk 0:03:01.1]}
5... Nc6 {[%clk 0:02:43.9]} 6. Qe3 {[%clk 0:03:01.2]} 6... g6 {[%clk 0:02:36.1]}
7. O-O {[%clk 0:03:00.8]} 7... Bg7 {[%clk 0:02:36.4]} 8. c4 {[%clk 0:03:00.4]}
8... O-O {[%clk 0:02:34.7]} 9. Nc3 {[%clk 0:02:59.3]} 9... Ng4 {[%clk
0:02:28.3]} 10. Qd2 {[%clk 0:02:57.7]} 10... Nge5 {[%clk 0:02:28.7]} 11. Nxe5
{[%clk 0:02:54.4]} 11... Nxe5 {[%clk 0:02:26.7]} 12. b3 {[%clk 0:02:44.8]} 12...
Bd7 {[%clk 0:02:16.2]} 13. Bb2 {[%clk 0:02:44]} 13... a6 {[%clk 0:02:15.9]} 14.
Nd5 {[%clk 0:02:33.8]} 14... b5 {[%clk 0:02:07.2]} 15. f4 {[%clk 0:02:28.7]}
15... Nc6 {[%clk 0:01:03.4]} 16. Bxg7 {[%clk 0:02:24.5]} 16... Kxg7 {[%clk
0:01:04.3]} 17. cxb5 {[%clk 0:02:24.3]} 17... axb5 {[%clk 0:01:04.4]} 18. Bxb5
{[%clk 0:02:23.8]} 18... e6 {[%clk 0:01:04.8]} 19. Bxc6 {[%clk 0:02:21.5]} 19...
Bxc6 {[%clk 0:01:05.7]} 20. Qc3+ {[%clk 0:02:21.4]} 20... f6 {[%clk 0:00:58.5]}
21. Qxc6 {[%clk 0:02:20.6]} 21... exd5 {[%clk 0:00:58.8]} 22. Qxd5 {[%clk
0:02:20.1]} 22... Ra5 {[%clk 0:00:58.4]} 23. Qd4 {[%clk 0:02:19.5]} 23... Qa8
{[%clk 0:00:53.1]} 24. Qxd6 {[%clk 0:02:14]} 24... Rxa2 {[%clk 0:00:51.4]} 25.
Rxa2 {[%clk 0:02:07.5]} 25... Qxa2 {[%clk 0:00:52.3]} 26. b4 {[%clk 0:02:07.8]}
26... Qc4 {[%clk 0:00:49.5]} 27. e5 {[%clk 0:02:03.9]} 27... fxe5 {[%clk
0:00:41.9]} 28. Qxe5+ {[%clk 0:02:04.8]} 28... Kg8 {[%clk 0:00:39.7]} 29. b5
{[%clk 0:02:01.3]} 29... Rf5 {[%clk 0:00:32.9]} 30. Qb8+ {[%clk 0:01:56]} 30...
Kg7 {[%clk 0:00:32.7]} 31. b6 {[%clk 0:01:56.9]} 31... Rb5 {[%clk 0:00:15.1]}
32. Qd6 {[%clk 0:01:21.8]} 32... Qb4 {[%clk 0:00:09.8]} 33. Qd7+ {[%clk
0:01:16.6]} 33... Kh6 {[%clk 0:00:09.9]} 34. f5 {[%clk 0:01:11.5]} 34... Rxb6
{[%clk 0:00:09.9]} 35. f6 {[%clk 0:01:08.9]} 35... Qd4+ {[%clk 0:00:10.1]} 36.
Qxd4 {[%clk 0:01:08.5]} 1-0

[Event "Late-Titled-Tuesday-Blitz-March-19-2024"]
[Site "Chess.com"]
[Date "2024.03.19"]
[Round "3"]
[White "semchik73"]
[Black "grandcoach"]
[Result "0-1"]
[WhiteElo "2412"]
[BlackElo "2242"]
[TimeControl "180+1"]
[EndTime "14:27:17 PDT"]
[Termination "grandcoach won by resignation"]

1. Nf3 {[%clk 0:03:00.1]} 1... c5 {[%clk 0:02:56.6]} 2. c4 {[%clk 0:03:00]} 2...
Nc6 {[%clk 0:02:53.3]} 3. e3 {[%clk 0:03:00.3]} 3... e5 {[%clk 0:02:51.9]} 4. d4
{[%clk 0:03:00.6]} 4... cxd4 {[%clk 0:02:51.1]} 5. exd4 {[%clk 0:03:00.7]} 5...
e4 {[%clk 0:02:51.6]} 6. Nfd2 {[%clk 0:02:58.8]} 6... Nf6 {[%clk 0:02:47.4]} 7.
d5 {[%clk 0:02:58.3]} 7... Ne5 {[%clk 0:02:44.4]} 8. Nc3 {[%clk 0:02:58.3]} 8...
Bb4 {[%clk 0:02:37.8]} 9. Be2 {[%clk 0:02:51.1]} 9... O-O {[%clk 0:02:33.5]} 10.
O-O {[%clk 0:02:51]} 10... Bxc3 {[%clk 0:02:25]} 11. bxc3 {[%clk 0:02:51.9]}
11... d6 {[%clk 0:02:20.9]} 12. Qc2 {[%clk 0:02:43.3]} 12... Bf5 {[%clk
0:02:17.3]} 13. Nb3 {[%clk 0:02:36.6]} 13... Rc8 {[%clk 0:01:59.3]} 14. Nd4
{[%clk 0:02:35.8]} 14... Bg6 {[%clk 0:01:58.7]} 15. Qb3 {[%clk 0:02:32.9]} 15...
b6 {[%clk 0:01:53.3]} 16. Ba3 {[%clk 0:02:31]} 16... Qe7 {[%clk 0:01:09.2]} 17.
Nb5 {[%clk 0:02:30]} 17... Rfd8 {[%clk 0:01:05.8]} 18. Rfe1 {[%clk 0:02:19.4]}
18... h5 {[%clk 0:01:00.5]} 19. Nd4 {[%clk 0:02:03.8]} 19... h4 {[%clk
0:00:58.9]} 20. h3 {[%clk 0:02:04]} 20... Bh5 {[%clk 0:00:53]} 21. Bxh5 {[%clk
0:01:58.5]} 21... Nxh5 {[%clk 0:00:53.9]} 22. Nf5 {[%clk 0:01:51]} 22... Qf6
{[%clk 0:00:51]} 23. Ne3 {[%clk 0:01:48.9]} 23... Nf4 {[%clk 0:00:47.1]} 24. Ng4
{[%clk 0:01:37.2]} 24... Qg5 {[%clk 0:00:42.8]} 25. Bc1 {[%clk 0:01:26.4]} 25...
Nxg4 {[%clk 0:00:34.8]} 26. Rxe4 {[%clk 0:01:21.8]} 26... Ne3 {[%clk 0:00:28]}
27. g4 {[%clk 0:01:15.4]} 27... Nxh3+ {[%clk 0:00:22.1]} 28. Kh2 {[%clk
0:01:15.3]} 28... Nxg4+ {[%clk 0:00:17.7]} 29. Rxg4 {[%clk 0:01:09.7]} 29...
Qxg4 {[%clk 0:00:18.6]} 30. Be3 {[%clk 0:01:09.8]} 30... Nf4 {[%clk 0:00:16.7]}
31. Bxf4 {[%clk 0:01:07.3]} 31... Qxf4+ {[%clk 0:00:17.6]} 32. Kg2 {[%clk
0:01:07.6]} 32... Rxc4 {[%clk 0:00:17.3]} 33. Rh1 {[%clk 0:01:07]} 33... Qg4+
{[%clk 0:00:16.8]} 34. Kf1 {[%clk 0:01:07.5]} 34... Re8 {[%clk 0:00:16.5]} 35.
Qc2 {[%clk 0:01:06.5]} 35... Rce4 {[%clk 0:00:15.3]} 36. Qd2 {[%clk 0:01:04.9]}
36... Re1+ {[%clk 0:00:14.8]} 37. Qxe1 {[%clk 0:01:05.3]} 37... Rxe1+ {[%clk
0:00:14.8]} 38. Kxe1 {[%clk 0:01:06.2]} 38... Qe4+ {[%clk 0:00:14.7]} 39. Kd2
{[%clk 0:01:05.8]} 39... Qxh1 {[%clk 0:00:15.6]} 0-1

[Event "Late-Titled-Tuesday-Blitz-March-19-2024"]
[Site "Chess.com"]
[Date "2024.03.19"]
[Round "3"]
[White "PedroGil25"]
[Black "Sanyura"]
[Result "1-0"]
[WhiteElo "2472"]
[BlackElo "2635"]
[TimeControl "180+1"]
[EndTime "14:27:18 PDT"]
[Termination "PedroGil25 won by checkmate"]

1. c4 {[%clk 0:03:00.9]} 1... Nf6 {[%clk 0:02:33.8]} 2. Nf3 {[%clk 0:03:00.8]}
2... g6 {[%clk 0:02:34.7]} 3. g3 {[%clk 0:03:01]} 3... d6 {[%clk 0:02:34.9]} 4.
d4 {[%clk 0:03:00.8]} 4... Bg7 {[%clk 0:02:35.8]} 5. Bg2 {[%clk 0:03:01.1]} 5...
O-O {[%clk 0:02:36.7]} 6. O-O {[%clk 0:03:01.4]} 6... Nbd7 {[%clk 0:02:37.6]} 7.
Nc3 {[%clk 0:03:01.7]} 7... e5 {[%clk 0:02:38.5]} 8. e4 {[%clk 0:03:01.6]} 8...
exd4 {[%clk 0:02:39.4]} 9. Nxd4 {[%clk 0:03:02.4]} 9... Nc5 {[%clk 0:02:39.6]}
10. Re1 {[%clk 0:03:02.2]} 10... Re8 {[%clk 0:02:40.1]} 11. h3 {[%clk
0:03:02.3]} 11... Bd7 {[%clk 0:02:36.9]} 12. Qc2 {[%clk 0:02:51.6]} 12... Nfxe4
{[%clk 0:02:26.3]} 13. Nxe4 {[%clk 0:02:50.8]} 13... Bxd4 {[%clk 0:02:26.7]} 14.
Bg5 {[%clk 0:02:50.1]} 14... f6 {[%clk 0:02:26.5]} 15. Bh6 {[%clk 0:02:43.5]}
15... Bc6 {[%clk 0:02:21.6]} 16. Rad1 {[%clk 0:02:33.8]} 16... Bxe4 {[%clk
0:02:10.6]} 17. Bxe4 {[%clk 0:02:34.7]} 17... Rxe4 {[%clk 0:02:02.7]} 18. Rxe4
{[%clk 0:02:34]} 18... Nxe4 {[%clk 0:02:03.2]} 19. Rxd4 {[%clk 0:02:15.3]} 19...
Nc5 {[%clk 0:02:02.7]} 20. b4 {[%clk 0:02:07.7]} 20... Ne6 {[%clk 0:01:58.7]}
21. Re4 {[%clk 0:02:07.1]} 21... Qd7 {[%clk 0:01:44.9]} 22. Qe2 {[%clk
0:02:06.9]} 22... Kf7 {[%clk 0:01:44.5]} 23. h4 {[%clk 0:02:05]} 23... f5 {[%clk
0:01:44]} 24. Re3 {[%clk 0:01:56.4]} 24... Re8 {[%clk 0:01:44.6]} 25. Qd3 {[%clk
0:01:54.1]} 25... c5 {[%clk 0:01:32.4]} 26. bxc5 {[%clk 0:01:49.7]} 26... Nxc5
{[%clk 0:01:31]} 27. Qd5+ {[%clk 0:01:48.3]} 27... Re6 {[%clk 0:01:31.6]} 28.
Qd4 {[%clk 0:01:34.5]} 28... Rxe3 {[%clk 0:01:25.6]} 29. Qg7+ {[%clk 0:01:33.3]}
29... Ke6 {[%clk 0:01:24]} 30. Qg8+ {[%clk 0:01:29.8]} 30... Qf7 {[%clk
0:01:16.1]} 31. Qc8+ {[%clk 0:01:28.4]} 31... Ke5 {[%clk 0:01:12.6]} 32. Bxe3
{[%clk 0:01:28.2]} 32... Qxc4 {[%clk 0:01:08.7]} 33. Qh8+ {[%clk 0:01:27.1]}
33... Ke4 {[%clk 0:01:08.3]} 34. Qxh7 {[%clk 0:01:23.6]} 34... Qe6 {[%clk
0:01:02.7]} 35. Bxc5 {[%clk 0:01:18.9]} 35... dxc5 {[%clk 0:01:02.7]} 36. Qxb7+
{[%clk 0:01:19]} 36... Kd3 {[%clk 0:01:01]} 37. Qxa7 {[%clk 0:01:17.6]} 37... c4
{[%clk 0:01:01]} 38. a4 {[%clk 0:00:53.1]} 38... c3 {[%clk 0:01:00]} 39. Qc5
{[%clk 0:00:39.6]} 39... c2 {[%clk 0:00:53.2]} 40. Kh2 {[%clk 0:00:36.7]} 40...
Qc4 {[%clk 0:00:46.7]} 41. Qe3# {[%clk 0:00:36]} 1-0

[Event "Late-Titled-Tuesday-Blitz-March-19-2024"]
[Site "Chess.com"]
[Date "2024.03.19"]
[Round "3"]
[White "Rawnsdale"]
[Black "NowInChess"]
[Result "1-0"]
[WhiteElo "2522"]
[BlackElo "2274"]
[TimeControl "180+1"]
[EndTime "14:27:20 PDT"]
[Termination "Rawnsdale won on time"]

1. e4 {[%clk 0:03:00.9]} 1... e6 {[%clk 0:03:00.3]} 2. d4 {[%clk 0:03:00.1]}
2... d5 {[%clk 0:03:00.9]} 3. e5 {[%clk 0:03:00]} 3... c5 {[%clk 0:03:00.8]} 4.
c3 {[%clk 0:03:00]} 4... Nc6 {[%clk 0:03:01.4]} 5. Nf3 {[%clk 0:03:00]} 5... Qb6
{[%clk 0:03:01.6]} 6. Be2 {[%clk 0:02:58.7]} 6... f6 {[%clk 0:03:01.4]} 7. exf6
{[%clk 0:02:48.9]} 7... Nxf6 {[%clk 0:03:02.3]} 8. O-O {[%clk 0:02:49.1]} 8...
Bd6 {[%clk 0:03:02]} 9. dxc5 {[%clk 0:02:48.6]} 9... Bxc5 {[%clk 0:03:01.8]} 10.
b4 {[%clk 0:02:46.1]} 10... Bxf2+ {[%clk 0:02:47.7]} 11. Rxf2 {[%clk 0:02:45.3]}
11... Ng4 {[%clk 0:02:31.6]} 12. Qf1 {[%clk 0:02:44.3]} 12... O-O {[%clk
0:02:24.7]} 13. h3 {[%clk 0:02:43.3]} 13... Nxf2 {[%clk 0:02:24.3]} 14. Qxf2
{[%clk 0:02:44.1]} 14... Qxf2+ {[%clk 0:02:22.6]} 15. Kxf2 {[%clk 0:02:45]}
15... e5 {[%clk 0:02:23]} 16. Kg1 {[%clk 0:02:44.8]} 16... e4 {[%clk 0:02:18.5]}
17. Nd4 {[%clk 0:02:44.5]} 17... Nxd4 {[%clk 0:02:00.6]} 18. cxd4 {[%clk
0:02:45.4]} 18... Be6 {[%clk 0:01:57.6]} 19. Be3 {[%clk 0:02:45.1]} 19... Rac8
{[%clk 0:01:56.9]} 20. Nd2 {[%clk 0:02:44.3]} 20... Rc2 {[%clk 0:01:53.3]} 21.
a4 {[%clk 0:02:41.2]} 21... Rfc8 {[%clk 0:01:47.9]} 22. Ra3 {[%clk 0:02:22.3]}
22... Rxd2 {[%clk 0:01:33.1]} 23. Bxd2 {[%clk 0:02:20.8]} 23... Rc2 {[%clk
0:01:33.5]} 24. Kf2 {[%clk 0:02:18.6]} 24... Rxd2 {[%clk 0:01:33]} 25. Ke3
{[%clk 0:02:19]} 25... Rc2 {[%clk 0:01:25.9]} 26. b5 {[%clk 0:02:16.9]} 26...
Kf7 {[%clk 0:01:16.7]} 27. a5 {[%clk 0:02:15]} 27... Ke7 {[%clk 0:01:10.5]} 28.
Rb3 {[%clk 0:02:11.1]} 28... Kd6 {[%clk 0:00:58.4]} 29. b6 {[%clk 0:02:11.4]}
29... a6 {[%clk 0:00:21]} 30. Bxa6 {[%clk 0:02:08.1]} 30... Bc8 {[%clk
0:00:21.1]} 31. Be2 {[%clk 0:02:05.4]} 31... Ra2 {[%clk 0:00:20.9]} 32. a6
{[%clk 0:02:02.7]} 32... Kc6 {[%clk 0:00:12.2]} 33. a7 {[%clk 0:01:55.6]} 33...
Kd6 {[%clk 0:00:07.3]} 34. g4 {[%clk 0:01:50.1]} 34... h5 {[%clk 0:00:06.4]} 35.
gxh5 {[%clk 0:01:48.2]} 35... Bxh3 {[%clk 0:00:07.3]} 36. Bb5 {[%clk 0:01:25.9]}
36... Be6 {[%clk 0:00:06.1]} 37. Rc3 {[%clk 0:01:24.9]} 37... Bg4 {[%clk
0:00:02.9]} 38. Rc7 {[%clk 0:01:22.4]} 38... Ra3+ {[%clk 0:00:03.1]} 39. Kf4
{[%clk 0:01:21.6]} 39... Bxh5 {[%clk 0:00:02.1]} 40. Rxb7 {[%clk 0:01:17.4]}
40... g6 {[%clk 0:00:01.6]} 41. Rb8 {[%clk 0:01:16.5]} 1-0

[Event "Late-Titled-Tuesday-Blitz-March-19-2024"]
[Site "Chess.com"]
[Date "2024.03.19"]
[Round "3"]
[White "Slovak_fighter2000"]
[Black "mishanick"]
[Result "0-1"]
[WhiteElo "2576"]
[BlackElo "3115"]
[TimeControl "180+1"]
[EndTime "14:27:23 PDT"]
[Termination "mishanick won by resignation"]

1. d4 {[%clk 0:03:00]} 1... Nf6 {[%clk 0:02:55.8]} 2. Nf3 {[%clk 0:03:00.1]}
2... d5 {[%clk 0:02:56.3]} 3. c4 {[%clk 0:03:00]} 3... e6 {[%clk 0:02:56.8]} 4.
Nc3 {[%clk 0:02:57.4]} 4... Nbd7 {[%clk 0:02:56.3]} 5. Bg5 {[%clk 0:02:56.5]}
5... h6 {[%clk 0:02:54.9]} 6. Bh4 {[%clk 0:02:55.7]} 6... c6 {[%clk 0:02:54.7]}
7. cxd5 {[%clk 0:02:52.7]} 7... exd5 {[%clk 0:02:54.2]} 8. e3 {[%clk 0:02:52.7]}
8... g5 {[%clk 0:02:54.9]} 9. Bg3 {[%clk 0:02:52.9]} 9... Nh5 {[%clk 0:02:55.6]}
10. Bd3 {[%clk 0:02:51.3]} 10... Nxg3 {[%clk 0:02:54.3]} 11. hxg3 {[%clk
0:02:51.6]} 11... Nb6 {[%clk 0:02:54.9]} 12. Qc2 {[%clk 0:02:48.6]} 12... Be6
{[%clk 0:02:55]} 13. Bf5 {[%clk 0:02:43.1]} 13... Qf6 {[%clk 0:02:48.3]} 14.
Bxe6 {[%clk 0:02:41.2]} 14... fxe6 {[%clk 0:02:49.2]} 15. e4 {[%clk 0:02:28.7]}
15... O-O-O {[%clk 0:02:45.3]} 16. O-O-O {[%clk 0:02:24]} 16... Bb4 {[%clk
0:02:41.9]} 17. Rhe1 {[%clk 0:02:09.3]} 17... Rhf8 {[%clk 0:02:32]} 18. e5
{[%clk 0:01:58.7]} 18... Qg7 {[%clk 0:02:31.8]} 19. g4 {[%clk 0:01:33.5]} 19...
h5 {[%clk 0:02:25.7]} 20. gxh5 {[%clk 0:01:29.3]} 20... g4 {[%clk 0:02:25.8]}
21. Ng1 {[%clk 0:01:22.2]} 21... Qg5+ {[%clk 0:02:25.3]} 22. Kb1 {[%clk
0:01:22.6]} 22... Qxh5 {[%clk 0:02:25.6]} 23. f3 {[%clk 0:01:13.8]} 23... Kb8
{[%clk 0:02:24.3]} 24. a3 {[%clk 0:01:05.3]} 24... Bxc3 {[%clk 0:02:23.9]} 25.
Qxc3 {[%clk 0:01:06.2]} 25... Qh2 {[%clk 0:02:17.1]} 26. Re2 {[%clk 0:01:00.5]}
26... Qg3 {[%clk 0:02:14]} 27. fxg4 {[%clk 0:00:55.1]} 27... Qxg4 {[%clk
0:02:14]} 28. Nf3 {[%clk 0:00:55.4]} 28... Rh8 {[%clk 0:02:08.7]} 29. Ka2 {[%clk
0:00:52.6]} 29... Nd7 {[%clk 0:02:03.6]} 30. Qb4 {[%clk 0:00:51]} 30... Ka8
{[%clk 0:02:03]} 31. Rd3 {[%clk 0:00:49]} 31... Rc8 {[%clk 0:01:57.5]} 32. Rb3
{[%clk 0:00:47.4]} 32... Rc7 {[%clk 0:01:56.2]} 33. Qd6 {[%clk 0:00:46.3]} 33...
Rhc8 {[%clk 0:01:56.7]} 34. Rf2 {[%clk 0:00:38.8]} 34... c5 {[%clk 0:01:37.2]}
35. Rc2 {[%clk 0:00:33.6]} 35... c4 {[%clk 0:01:33.1]} 36. Rb4 {[%clk 0:00:28]}
36... Nb6 {[%clk 0:01:29.5]} 37. Rc3 {[%clk 0:00:20.6]} 37... Rc6 {[%clk
0:01:28.6]} 38. Qe7 {[%clk 0:00:20.7]} 38... Qxg2 {[%clk 0:01:26.9]} 39. Ng5
{[%clk 0:00:18.9]} 39... Qg4 {[%clk 0:01:26.7]} 40. Nf7 {[%clk 0:00:18.2]} 40...
R6c7 {[%clk 0:01:25.9]} 41. Qf6 {[%clk 0:00:15.6]} 41... Rf8 {[%clk 0:01:22.1]}
42. Nh6 {[%clk 0:00:13.8]} 42... Rxf6 {[%clk 0:01:22]} 43. Nxg4 {[%clk
0:00:14.3]} 43... Rf4 {[%clk 0:01:22.7]} 0-1

[Event "Late-Titled-Tuesday-Blitz-March-19-2024"]
[Site "Chess.com"]
[Date "2024.03.19"]
[Round "3"]
[White "KorolDimitriy75"]
[Black "babero_gordo"]
[Result "1-0"]
[WhiteElo "2393"]
[BlackElo "2114"]
[TimeControl "180+1"]
[EndTime "14:27:23 PDT"]
[Termination "KorolDimitriy75 won by resignation"]

1. d4 {[%clk 0:03:00.9]} 1... Nf6 {[%clk 0:02:58.4]} 2. c4 {[%clk 0:03:01.1]}
2... e6 {[%clk 0:02:58.7]} 3. Nc3 {[%clk 0:03:01.7]} 3... Bb4 {[%clk 0:02:58.6]}
4. Qc2 {[%clk 0:03:01.9]} 4... O-O {[%clk 0:02:56.4]} 5. e4 {[%clk 0:03:02]}
5... d5 {[%clk 0:02:55.8]} 6. cxd5 {[%clk 0:03:02.9]} 6... exd5 {[%clk
0:02:54.1]} 7. e5 {[%clk 0:03:03.8]} 7... Ne4 {[%clk 0:02:54]} 8. Bd3 {[%clk
0:03:04.4]} 8... f6 {[%clk 0:02:32.1]} 9. Ne2 {[%clk 0:02:49.2]} 9... fxe5
{[%clk 0:02:24.9]} 10. O-O {[%clk 0:02:49]} 10... Nc6 {[%clk 0:02:16.8]} 11.
Nxd5 {[%clk 0:02:47.9]} 11... Nf6 {[%clk 0:02:00]} 12. Nxb4 {[%clk 0:02:28.1]}
12... Nxb4 {[%clk 0:01:56.1]} 13. Qb3+ {[%clk 0:02:27.8]} 13... Nfd5 {[%clk
0:01:44.4]} 14. Be4 {[%clk 0:02:03.9]} 14... Be6 {[%clk 0:01:31.7]} 15. dxe5
{[%clk 0:01:48.9]} 15... Nf4 {[%clk 0:01:16.9]} 16. Qxb4 {[%clk 0:01:15.8]}
16... Nxe2+ {[%clk 0:01:14.8]} 17. Kh1 {[%clk 0:01:16.4]} 17... Qh4 {[%clk
0:01:07.4]} 18. Be3 {[%clk 0:01:03.5]} 18... Nf4 {[%clk 0:00:27.9]} 19. Qxb7
{[%clk 0:00:49.1]} 19... Rae8 {[%clk 0:00:22.7]} 20. g3 {[%clk 0:00:40.6]} 20...
Qg4 {[%clk 0:00:13.8]} 21. Bxf4 {[%clk 0:00:39.6]} 21... Rxf4 {[%clk 0:00:13.1]}
22. gxf4 {[%clk 0:00:39.4]} 22... Qxf4 {[%clk 0:00:13.8]} 23. Qc6 {[%clk
0:00:35.6]} 23... Qxe5 {[%clk 0:00:13.4]} 24. Rae1 {[%clk 0:00:34.6]} 24... Qf6
{[%clk 0:00:13.2]} 25. Bd5 {[%clk 0:00:31.9]} 1-0

[Event "Late-Titled-Tuesday-Blitz-March-19-2024"]
[Site "Chess.com"]
[Date "2024.03.19"]
[Round "3"]
[White "Firouzja2003"]
[Black "DavidGavrilescu18"]
[Result "1-0"]
[WhiteElo "3104"]
[BlackElo "2761"]
[TimeControl "180+1"]
[EndTime "14:27:25 PDT"]
[Termination "Firouzja2003 won by resignation"]

1. Nf3 {[%clk 0:03:00.9]} 1... d5 {[%clk 0:02:59.4]} 2. g3 {[%clk 0:03:01.4]}
2... e6 {[%clk 0:03:00]} 3. Bg2 {[%clk 0:03:01.9]} 3... Nf6 {[%clk 0:03:00.5]}
4. O-O {[%clk 0:03:02.2]} 4... Be7 {[%clk 0:03:01.2]} 5. d3 {[%clk 0:03:02.9]}
5... O-O {[%clk 0:03:01.7]} 6. Re1 {[%clk 0:03:03.8]} 6... c5 {[%clk 0:03:01.7]}
7. Nbd2 {[%clk 0:03:02.9]} 7... Nc6 {[%clk 0:03:01.9]} 8. e4 {[%clk 0:03:03.3]}
8... Qc7 {[%clk 0:03:02.4]} 9. Qe2 {[%clk 0:02:46.5]} 9... b5 {[%clk 0:02:58.7]}
10. c3 {[%clk 0:02:35]} 10... a5 {[%clk 0:02:43.8]} 11. Nf1 {[%clk 0:02:29]}
11... dxe4 {[%clk 0:02:34.1]} 12. dxe4 {[%clk 0:02:29]} 12... Ba6 {[%clk
0:02:34.3]} 13. e5 {[%clk 0:02:28.1]} 13... Nd5 {[%clk 0:02:33.6]} 14. Qe4
{[%clk 0:02:24.4]} 14... Rad8 {[%clk 0:02:29.7]} 15. h4 {[%clk 0:02:07]} 15...
h6 {[%clk 0:01:45.2]} 16. N1h2 {[%clk 0:02:03.2]} 16... Bc8 {[%clk 0:01:40.7]}
17. Ng4 {[%clk 0:02:00.9]} 17... f5 {[%clk 0:01:40.9]} 18. exf6 {[%clk
0:01:59.3]} 18... Nxf6 {[%clk 0:01:41.1]} 19. Nxf6+ {[%clk 0:01:43.7]} 19...
Bxf6 {[%clk 0:01:34.6]} 20. Bf4 {[%clk 0:01:43.3]} 20... Qb6 {[%clk 0:01:29.7]}
21. Rad1 {[%clk 0:01:31.8]} 21... Ne7 {[%clk 0:01:27.3]} 22. Ne5 {[%clk
0:01:29.3]} 22... c4 {[%clk 0:01:14.7]} 23. Ng4 {[%clk 0:01:26.1]} 23... Rxd1
{[%clk 0:01:12.3]} 24. Rxd1 {[%clk 0:01:26.2]} 24... Nd5 {[%clk 0:01:12.9]} 25.
Nxh6+ {[%clk 0:01:05.9]} 25... gxh6 {[%clk 0:01:09]} 26. Qg6+ {[%clk 0:00:59.7]}
26... Kh8 {[%clk 0:01:06.6]} 27. Qxh6+ {[%clk 0:00:57.5]} 27... Kg8 {[%clk
0:01:06.1]} 28. Qg6+ {[%clk 0:00:53.8]} 28... Kh8 {[%clk 0:01:06.4]} 29. Bxd5
{[%clk 0:00:50.9]} 29... exd5 {[%clk 0:01:05.9]} 30. Rxd5 {[%clk 0:00:51.8]}
30... Bg4 {[%clk 0:00:34]} 31. Qh6+ {[%clk 0:00:46.8]} 31... Kg8 {[%clk
0:00:33]} 32. Qg6+ {[%clk 0:00:47]} 32... Kh8 {[%clk 0:00:33]} 33. Qxg4 {[%clk
0:00:47.5]} 33... Bg7 {[%clk 0:00:33.2]} 34. Rh5+ {[%clk 0:00:45]} 34... Kg8
{[%clk 0:00:33.4]} 35. Rg5 {[%clk 0:00:44.8]} 35... Qa7 {[%clk 0:00:33.8]} 36.
Be3 {[%clk 0:00:44.4]} 36... Qe7 {[%clk 0:00:30.2]} 37. Bd4 {[%clk 0:00:43.5]}
37... Rf7 {[%clk 0:00:30.6]} 38. Rxg7+ {[%clk 0:00:43.3]} 38... Rxg7 {[%clk
0:00:31]} 39. Qxg7+ {[%clk 0:00:44.2]} 39... Qxg7 {[%clk 0:00:31.3]} 40. Bxg7
{[%clk 0:00:45.1]} 1-0